bitfinex/quotes_SOLUSD_20251009
["timestamp","ask_amount","ask_price","bid_price","bid_amount"]
[1759999254867,0.72,220.06,219.97,6.66667536]
[1759999255073,0.72,220.06,219.97,0.1]
[1759999255307,0.72,220.06,219.97,4.6460518]
[1759999255483,10.87647521,220.04,219.97,0.1]
[1759999255793,6.56667536,219.99,219.97,0.1]
[1759999255997,6.58803364,219.99,219.97,0.1]
[1759999256295,0.7,219.98,219.97,0.1]
[1759999256592,0.7,219.98,219.85,20.8]
[1759999256593,0.7,219.98,219.82,22.49282724]
[1759999256894,36.18,220.06,219.97,4.42245902]
[1759999257103,36.18,220.06,220.0,4.42245902]
[1759999257104,0.7,220.04,220.0,4.42245902]
[1759999257396,0.7,220.08,220.02,4.42245902]
[1759999257576,0.7,220.12,220.07,4.42245902]
[1759999257784,0.7,220.12,219.95,20.8]
[1759999257983,0.7,220.17,220.11,4.42245902]
[1759999258192,0.7,220.17,220.03,20.8]
[1759999258397,36.92,220.2,220.03,20.8]
[1759999258700,36.92,220.2,220.17,4.42245902]
[1759999259003,11.96610747,220.23,220.08,20.8]
[1759999259004,0.7,220.23,220.08,20.8]
[1759999259189,0.7,220.23,220.21,4.42245902]
[1759999259378,0.7,220.23,220.08,20.8]
[1759999259379,0.7,220.26,220.08,20.8]
[1759999259575,36.22,220.28,220.24,4.42245902]
[1759999259876,0.7,220.34,220.27,4.42245902]
[1759999260086,0.7,220.34,220.3,4.42245902]
[1759999260402,0.7,220.33,220.23,4.42245902]
[1759999260586,0.5,220.32,220.2,4.54127707]
[1759999260792,1.2,220.32,220.15,25.34235748]
[1759999260994,0.7,220.32,220.16,20.8]
[1759999261193,0.7,220.31,220.16,20.8]
[1759999261607,0.7,220.3,220.23,4.42245902]
[1759999261806,0.7,220.3,220.27,4.42245902]
[1759999261984,0.7,220.35,220.29,4.42245902]
[1759999262184,0.7,220.39,220.34,4.42245902]
[1759999262511,12.14523613,220.44,220.36,4.42245902]
[1759999262685,0.7,220.42,220.38,4.42245902]
[1759999262877,0.7,220.41,220.3,11.34770271]
[1759999263078,12.14523613,220.44,220.39,4.42245902]
[1759999263281,0.7,220.43,220.42,4.42245902]
[1759999263496,0.7,220.48,220.42,4.42245902]
[1759999263695,0.7,220.48,220.33,20.8]
[1759999263904,0.7,220.47,220.26,15.89031144]
[1759999264107,4.53521093,220.5,220.26,61.48008898]
[1759999264108,5.12245902,220.46,220.26,61.48008898]
[1759999264289,0.7,220.45,220.26,61.48008898]
[1759999264479,0.7,220.44,220.37,4.42245902]
[1759999264804,4.42245902,220.42,220.18,47.01647521]
[1759999265011,0.7,220.41,220.25,20.8]
[1759999265383,0.7,220.41,220.39,4.42245902]
[1759999265582,4.53642532,220.44,220.39,4.42245902]
[1759999265788,5.12245902,220.43,220.22,4.42245902]
[1759999266004,4.42245902,220.4,220.18,10.87647521]
[1759999266208,0.7,220.39,220.18,10.87647521]
[1759999266504,4.42245902,220.36,220.13,19.99999999]
[1759999266816,4.42245902,220.28,220.09,15.9025853]
[1759999266988,0.7,220.27,220.09,4.5435958]
[1759999267310,36.98,220.27,220.22,4.42245902]
[1759999267516,36.98,220.3,220.24,4.42245902]
[1759999268008,4.53898919,220.32,220.28,4.42245902]
[1759999268187,0.7,220.31,220.28,4.42245902]
[1759999268496,0.7,220.3,220.28,4.42245902]
[1759999268884,4.42245902,220.37,220.28,4.42245902]
[1759999269083,0.7,220.33,220.22,4.54077187]
[1759999269305,0.7,220.33,220.28,4.42245902]
[1759999269504,0.7,220.32,220.28,4.42245902]
[1759999269682,40.77802868,220.36,220.28,4.42245902]
[1759999269885,0.7,220.35,220.28,4.42245902]
[1759999270108,0.7,220.35,220.21,20.8]
[1759999270308,45.2004877,220.36,220.1,20.8]
[1759999270309,4.42245902,220.32,220.1,20.8]
[1759999270492,4.42245902,220.32,220.23,4.42245902]
[1759999270493,0.7,220.31,220.23,4.42245902]
[1759999270694,0.7,220.31,220.26,4.42245902]
[1759999270913,47.5850717,220.36,220.28,4.42245902]
[1759999271087,36.86,220.35,220.28,4.42245902]
[1759999271287,36.86,220.35,220.15,20.8]
[1759999271508,36.86,220.35,220.29,4.42245902]
[1759999272312,41.39823462,220.35,220.29,4.42245902]
[1759999272693,0.7,220.35,220.25,4.54019686]
[1759999273014,4.42245902,220.3,220.22,4.42245902]
[1759999273312,0.7,220.29,220.22,4.42245902]
[1759999273487,0.7,220.29,220.0,4.42245902]
[1759999273488,10.87647521,220.27,220.07,15.90403053]
[1759999273687,0.7,220.26,220.19,4.42245902]
[1759999273888,36.08,220.25,220.21,4.42245902]
[1759999274088,4.54050127,220.24,220.21,4.42245902]
[1759999274496,0.7,220.3,220.23,4.42245902]
[1759999274702,0.7,220.34,220.26,4.42245902]
[1759999274897,36.12,220.33,220.28,4.42245902]
[1759999275103,36.82,220.33,220.28,4.42245902]
[1759999275400,36.14,220.34,220.28,4.42245902]
[1759999275804,36.12,220.35,220.3,4.42245902]
[1759999276107,4.42245902,220.32,220.05,10.87647521]
[1759999276314,4.42245902,220.3,220.21,4.42245902]
[1759999276509,0.7,220.31,220.25,4.42245902]
[1759999276720,36.16,220.33,220.16,20.8]
[1759999276894,36.16,220.33,220.29,4.42245902]
[1759999277306,36.16,220.33,220.31,4.42245902]
[1759999277500,36.16,220.33,220.16,20.8]
[1759999277501,36.86,220.33,220.3,4.42245902]
[1759999277792,41.39876634,220.33,220.2,20.8]
[1759999278118,36.86,220.33,220.3,4.42245902]
[1759999278802,36.8,220.38,220.32,4.42245902]
[1759999279104,0.7,220.37,220.31,4.42245902]
[1759999279307,0.7,220.36,220.31,4.42245902]
[1759999279635,36.1,220.38,220.33,4.42245902]
[1759999279818,0.7,220.36,220.33,4.42245902]
[1759999280021,5.23823462,220.35,220.22,20.8]
[1759999280319,5.23823462,220.35,220.31,4.42245902]
[1759999280725,5.23823462,220.35,220.32,4.42245902]
[1759999280928,0.7,220.35,220.32,4.42245902]
[1759999281130,36.8,220.38,220.33,4.42245902]
[1759999281299,0.7,220.37,220.33,4.42245902]
[1759999281635,5.23807778,220.36,220.32,4.42245902]
[1759999281801,4.53844059,220.34,220.17,15.89680701]
[1759999282004,0.7,220.33,220.27,4.42245902]
[1759999282408,0.7,220.33,220.17,15.89680701]
[1759999282615,4.42245902,220.29,220.09,4.5435958]
[1759999282797,36.66,220.28,220.09,4.5435958]
[1759999282999,4.42245902,220.26,220.18,4.42245902]
[1759999283226,4.42245902,220.26,220.09,4.5435958]
[1759999283227,21.5,220.25,220.09,4.42245902]
[1759999283429,4.42245902,220.15,220.04,0.7]
[1759999283597,0.7,220.18,220.13,4.42245902]
[1759999283933,4.54215116,220.16,220.13,4.42245902]
[1759999284227,4.54215116,220.16,220.11,4.42245902]
[1759999284433,0.7,220.15,220.11,4.42245902]
[1759999284801,36.16,220.16,220.13,4.42245902]
[1759999285108,5.24165449,220.19,220.13,4.42245902]
[1759999285321,36.16,220.18,220.15,4.42245902]
[1759999285522,36.12,220.18,220.17,4.42245902]
[1759999285829,36.12,220.18,220.1,0.66]
[1759999285997,4.54194486,220.17,220.15,4.42245902]
[1759999286200,4.54194486,220.17,220.11,4.42245902]
[1759999286201,0.71,220.16,220.11,4.42245902]
[1759999286393,0.71,220.15,220.05,21.46]
[1759999286701,0.71,220.15,220.09,4.42245902]
[1759999287037,0.71,220.15,220.11,4.42245902]
[1759999287228,5.25138392,220.2,220.13,4.42245902]
[1759999287397,36.1,220.17,220.13,4.42245902]
[1759999288234,36.06,220.18,220.16,4.42245902]
[1759999288414,0.71,220.2,220.1,0.66]
[1759999288611,22.8,220.21,220.19,4.42245902]
[1759999288818,22.82,220.21,220.19,4.42245902]
[1759999289003,22.82,220.21,220.12,0.66]
[1759999289205,22.82,220.21,220.16,4.42245902]
[1759999289509,23.53,220.21,220.18,4.42245902]
[1759999290435,27.36123321,220.21,220.18,4.42245902]
[1759999290633,0.71,220.24,220.2,4.42245902]
[1759999290810,35.98,220.23,220.2,4.42245902]
[1759999291234,4.54029511,220.25,220.2,4.42245902]
[1759999291536,0.71,220.26,220.24,4.42245902]
[1759999291748,10.87647521,220.3,220.14,0.66]
[1759999291749,36.63,220.25,220.14,0.66]
[1759999291915,36.63,220.25,220.21,4.42245902]
[1759999292240,4.54070744,220.23,220.14,0.66]
[1759999292444,4.54070744,220.23,220.19,4.42245902]
[1759999292740,0.71,220.22,220.19,4.42245902]
[1759999293041,4.54070744,220.23,220.12,36.7003988]
[1759999293224,4.54070744,220.23,220.19,4.42245902]
[1759999293743,4.54070744,220.23,220.15,4.42245902]
[1759999293744,0.71,220.22,220.15,4.42245902]
[1759999294536,4.54111984,220.21,220.15,4.42245902]
[1759999294741,4.54111984,220.21,220.17,4.42245902]
[1759999294941,4.54101385,220.22,220.2,4.42245902]
[1759999295142,35.84,220.22,220.21,4.42245902]
[1759999295519,35.84,220.22,220.2,4.42245902]
[1759999295828,35.82,220.24,220.2,4.42245902]
[1759999296032,35.82,220.24,220.23,4.42245902]
[1759999296448,35.82,220.24,220.18,4.54173857]
[1759999296651,35.82,220.24,220.23,4.42245902]
[1759999298147,0.71,220.3,220.23,4.42245902]
[1759999298319,12.05589494,220.35,220.27,4.42245902]
[1759999298516,40.27844059,220.34,220.27,4.42245902]
[1759999298829,40.27844059,220.34,220.29,4.42245902]
[1759999299030,11.34455688,220.37,220.26,4.54006344]
[1759999299228,35.72,220.36,220.3,4.42245902]
[1759999299545,35.72,220.36,220.32,4.42245902]
[1759999300040,36.43,220.36,220.32,4.42245902]
[1759999300649,5.24823462,220.35,220.25,0.66]
[1759999300823,5.24823462,220.35,220.31,4.42245902]
[1759999301644,0.71,220.41,220.34,4.42245902]
[1759999301823,35.68,220.4,220.36,4.42245902]
[1759999302156,36.39,220.4,220.36,4.42245902]
[1759999302454,0.71,220.43,220.36,4.42245902]
[1759999302622,0.71,220.43,220.25,36.69100135]
[1759999302623,35.62,220.42,220.39,4.42245902]
[1759999303543,35.62,220.42,220.4,4.42245902]
[1759999303722,35.62,220.42,220.33,0.66]
[1759999303927,35.62,220.42,220.4,4.42245902]
[1759999304137,35.62,220.42,220.33,0.66]
[1759999304354,35.62,220.42,220.4,4.42245902]
[1759999304848,35.54,220.43,220.4,4.42245902]
[1759999305030,35.54,220.43,220.42,4.42245902]
[1759999305448,35.54,220.43,220.35,0.71]
[1759999305753,35.54,220.43,220.41,4.42245902]
[1759999306948,0.69,220.47,220.42,4.42245902]
[1759999307138,35.48,220.46,220.44,4.42245902]
[1759999307756,35.46,220.46,220.44,4.42245902]
[1759999308050,35.44,220.48,220.45,4.42245902]
[1759999308352,35.44,220.51,220.47,4.42245902]
[1759999308552,36.11,220.54,220.5,4.42245902]
[1759999308553,40.64433113,220.54,220.5,4.42245902]
[1759999308848,36.13,220.53,220.5,4.42245902]
[1759999309054,36.13,220.53,220.45,5.24604014]
[1759999309233,36.13,220.53,220.51,4.42245902]
[1759999309631,36.13,220.53,220.52,4.42245902]
[1759999309947,36.13,220.53,220.45,0.71]
[1759999310166,36.13,220.53,220.35,20.8]
[1759999310358,0.69,220.52,220.35,0.71]
[1759999310661,4.53494172,220.51,220.44,4.42245902]
[1759999310951,35.38,220.5,220.46,4.42245902]
[1759999311254,36.07,220.5,220.46,4.42245902]
[1759999311459,36.09,220.5,220.46,4.42245902]
[1759999311660,0.69,220.5,220.46,4.42245902]
[1759999311860,36.09,220.5,220.46,4.42245902]
[1759999312038,0.2,220.58,220.5,20.8]
[1759999312237,0.2,220.58,220.57,4.42245902]
[1759999313733,0.89,220.58,220.46,0.71]
[1759999314057,16.75725904,220.58,220.55,4.42245902]
[1759999314350,0.69,220.57,220.55,4.42245902]
[1759999314553,0.69,220.57,220.56,4.42245902]
[1759999314855,0.69,220.57,220.5,4.535127]
[1759999314856,0.2,220.58,220.5,4.53513189]
[1759999315451,0.2,220.58,220.57,4.42245902]
[1759999315941,0.2,220.58,220.57,4.39582002]
[1759999316173,5.41353793,220.58,220.47,20.8]
[1759999316539,5.41353793,220.58,220.51,4.39582002]
[1759999316840,16.74729439,220.58,220.51,4.39582002]
[1759999317358,5.41353793,220.58,220.54,4.39582002]
[1759999317536,35.46,220.57,220.55,4.39582002]
[1759999318032,35.46,220.57,220.56,4.39582002]
[1759999318348,0.2,220.58,220.56,6.54815965]
[1759999318529,0.68,220.57,220.47,0.67]
[1759999318735,0.68,220.57,220.47,5.2057623]
[1759999319759,0.68,220.57,220.47,16.54517355]
[1759999320259,0.2,220.58,220.48,0.67]
[1759999320835,0.2,220.58,220.5,20.8]
[1759999321852,0.2,220.58,220.5,21.47]
[1759999322368,0.2,220.58,220.51,4.53494172]
[1759999322747,0.2,220.58,220.57,6.54815965]
[1759999323058,0.2,220.58,220.56,6.54815965]
[1759999323461,0.2,220.58,220.57,6.54815965]
[1759999324442,4.73350258,220.58,220.44,6.54815965]
[1759999324643,0.68,220.57,220.47,20.8]
[1759999324840,0.68,220.56,220.49,6.54815965]
[1759999325147,6.54815965,220.57,220.49,6.54815965]
[1759999325349,0.68,220.56,220.5,6.54815965]
[1759999325759,6.54815965,220.54,220.4,22.85865784]
[1759999325966,0.68,220.53,220.45,6.54815965]
[1759999326148,0.68,220.52,220.45,6.54815965]
[1759999326348,16.55229603,220.51,220.45,6.54815965]
[1759999326647,0.68,220.5,220.44,6.54815965]
[1759999326844,0.68,220.5,220.45,6.54815965]
[1759999327250,0.68,220.52,220.48,6.54815965]
[1759999327450,35.22,220.55,220.51,6.54815965]
[1759999327451,35.9,220.55,220.51,6.54815965]
[1759999327670,6.54815965,220.52,220.38,0.67]
[1759999327871,7.22815965,220.51,220.44,6.54815965]
[1759999328072,0.68,220.51,220.45,6.54815965]
[1759999328478,4.53514739,220.5,220.45,6.54815965]
[1759999328674,0.68,220.49,220.43,6.54815965]
[1759999328863,0.68,220.49,220.45,6.54815965]
[1759999329062,0.68,220.49,220.4,20.8]
[1759999329366,0.68,220.49,220.45,6.54815965]
[1759999329874,0.68,220.53,220.48,6.54815965]
[1759999330051,0.68,220.53,220.49,6.54815965]
[1759999330565,39.75427983,220.55,220.52,6.54815965]
[1759999330749,39.75427983,220.55,220.53,6.54815965]
[1759999330956,39.75427983,220.55,220.45,0.67]
[1759999331455,39.75427983,220.55,220.52,6.54815965]
[1759999332055,0.68,220.54,220.51,6.54815965]
[1759999332255,7.22815965,220.53,220.46,6.54815965]
[1759999332461,0.68,220.52,220.46,6.54815965]
[1759999332683,39.75427983,220.55,220.5,6.54815965]
[1759999332858,0.68,220.54,220.5,6.54815965]
[1759999333051,0.68,220.53,220.5,6.54815965]
[1759999333457,0.68,220.52,220.43,0.67]
[1759999333783,39.75427983,220.55,220.5,6.54815965]
[1759999333987,39.75427983,220.55,220.51,6.54815965]
[1759999333988,40.43427983,220.55,220.51,6.54815965]
[1759999334287,39.75411924,220.55,220.53,6.54815965]
[1759999334589,40.43411924,220.55,220.52,6.54815965]
[1759999334787,11.55647521,220.54,220.43,0.67]
[1759999334957,11.55647521,220.54,220.49,6.54815965]
[1759999334958,0.68,220.54,220.49,6.54815965]
[1759999335158,0.68,220.54,220.5,6.54815965]
[1759999335462,0.68,220.53,220.5,6.54815965]
[1759999335895,0.68,220.53,220.41,20.8]
[1759999335896,0.68,220.52,220.4,0.67]
[1759999336178,0.68,220.52,220.47,6.54815965]
[1759999336356,0.68,220.51,220.47,6.54815965]
[1759999336557,0.68,220.51,220.49,6.54815965]
[1759999336774,4.53461616,220.53,220.49,6.54815965]
[1759999337080,0.68,220.53,220.51,6.54815965]
[1759999337258,0.2,220.58,220.52,7.21815965]
[1759999337465,11.07647521,220.58,220.48,0.67]
[1759999337667,10.87647521,220.56,220.44,0.67]
[1759999337880,15.86941735,220.55,220.48,6.54815965]
[1759999338070,18.10463486,220.54,220.44,4.53623279]
[1759999338270,0.68,220.53,220.47,6.54815965]
[1759999338486,0.68,220.53,220.48,6.54815965]
[1759999338660,0.68,220.52,220.48,6.54815965]
[1759999339062,10.87647521,220.55,220.51,6.54815965]
[1759999339272,0.68,220.54,220.5,6.54815965]
[1759999339759,4.53391367,220.56,220.52,6.54815965]
[1759999340078,4.53391367,220.56,220.51,6.54815965]
[1759999340079,5.21391367,220.56,220.51,6.54815965]
[1759999340281,5.21391367,220.56,220.52,6.54815965]
[1759999340489,0.68,220.55,220.52,6.54815965]
[1759999340862,0.68,220.54,220.44,20.8]
[1759999341164,17.42463486,220.52,220.45,6.54815965]
[1759999341364,10.87647521,220.5,220.45,6.54815965]
[1759999342066,0.68,220.49,220.45,6.54815965]
[1759999342266,4.53555878,220.48,220.4,4.53700377]
[1759999342478,0.68,220.49,220.46,6.54815965]
[1759999342782,4.53523541,220.5,220.47,6.54815965]
[1759999342986,5.21523541,220.5,220.46,6.54815965]
[1759999343185,0.68,220.49,220.46,6.54815965]
[1759999343383,0.68,220.49,220.42,6.54815965]
[1759999343384,11.55647521,220.48,220.42,6.54815965]
[1759999343588,0.68,220.47,220.37,21.47]
[1759999343769,46.39647521,220.46,220.4,6.54815965]
[1759999343964,46.39647521,220.46,220.34,0.67]
[1759999343965,10.87647521,220.44,220.38,6.54815965]
[1759999344168,10.87647521,220.4,220.3,0.67]
[1759999344483,10.87647521,220.4,220.34,6.54815965]
[1759999344484,46.39647521,220.4,220.34,6.54815965]
[1759999344664,46.39647521,220.4,220.36,6.54815965]
[1759999344868,0.68,220.39,220.35,6.54815965]
[1759999345180,0.65,220.38,220.3,0.67]
[1759999345377,0.65,220.38,220.35,6.54815965]
[1759999345767,45.71647521,220.4,220.36,6.54815965]
[1759999345964,0.65,220.39,220.36,6.54815965]
[1759999346488,5.18759802,220.39,220.36,6.54815965]
[1759999347194,5.18759802,220.39,220.04,35.69114767]
[1759999347195,10.87647521,220.37,220.18,4.54173857]
[1759999347396,6.54815965,220.34,220.23,0.7]
[1759999347569,45.63647521,220.33,220.26,6.54815965]
[1759999347770,46.28647521,220.33,220.26,6.54815965]
[1759999347972,46.28647521,220.33,220.18,15.89608501]
[1759999347973,10.87647521,220.31,220.24,6.54815965]
[1759999348175,0.65,220.32,220.18,15.89608501]
[1759999348176,0.65,220.32,220.27,6.54815965]
[1759999348470,15.41535126,220.32,220.21,20.8]
[1759999348678,27.4124827,220.32,220.2,0.7]
[1759999348882,6.54815965,220.31,220.24,6.54815965]
[1759999349082,0.65,220.3,220.24,6.54815965]
[1759999349276,0.65,220.3,220.2,0.7]
[1759999349478,0.65,220.3,220.23,6.54815965]
[1759999350400,10.87647521,220.29,220.23,6.54815965]
[1759999350691,34.72,220.28,220.23,6.54815965]
[1759999350872,34.72,220.28,220.21,4.54097933]
[1759999351184,34.72,220.28,220.25,6.54815965]
[1759999353193,34.72,220.28,220.17,34.13382724]
[1759999353194,0.65,220.27,220.17,0.7]
[1759999353394,0.65,220.27,220.22,6.54815965]
[1759999353594,0.65,220.27,220.23,6.54815965]
[1759999353808,0.65,220.26,220.17,0.7]
[1759999354013,39.25970749,220.28,220.22,6.54815965]
[1759999354470,221.39815965,220.27,220.17,0.7]
[1759999354673,214.2,220.26,220.16,5.24215116]
[1759999354975,214.2,220.26,220.2,6.54815965]
[1759999355385,214.85,220.25,220.19,6.54815965]
[1759999355787,34.6,220.24,220.16,4.54215116]
[1759999355964,34.6,220.24,220.18,6.54815965]
[1759999356370,39.14069772,220.24,220.18,6.54815965]
[1759999356793,39.14069772,220.24,220.18,11.08988457]
[1759999357186,39.14069772,220.24,220.19,6.54815965]
[1759999357486,34.6,220.24,220.22,6.54815965]
[1759999357676,214.2,220.23,220.22,6.54815965]
[1759999358378,214.2,220.23,220.19,5.24137065]
[1759999358578,214.2,220.23,220.22,6.54815965]
[1759999358891,34.6,220.24,220.22,6.54815965]
[1759999359096,16.0657515,220.3,220.23,6.54815965]
[1759999359284,16.0657515,220.3,220.27,6.54815965]
[1759999359285,34.52,220.29,220.27,6.54815965]
[1759999359875,34.52,220.29,220.28,6.54815965]
[1759999360081,34.5,220.31,220.28,6.54815965]
[1759999360294,35.15,220.31,220.28,6.54815965]
[1759999360476,5.18926463,220.3,220.22,0.7]
[1759999360682,5.18926463,220.3,220.27,6.54815965]
[1759999360899,5.18926463,220.3,220.22,5.24085921]
[1759999361200,5.18926463,220.3,220.27,6.54815965]
[1759999361580,34.5,220.31,220.26,6.54815965]
[1759999361776,34.5,220.31,220.27,6.54815965]
[1759999361975,39.6890715,220.31,220.2,4.54132111]
[1759999362198,39.6890715,220.31,220.23,21.5]
[1759999362394,39.6890715,220.31,220.26,6.54815965]
[1759999362595,0.65,220.3,220.26,6.54815965]
[1759999362783,34.5,220.31,220.26,11.08822142]
[1759999362989,35.15,220.31,220.26,11.08822142]
[1759999363395,0.65,220.3,220.26,6.54815965]
[1759999363804,39.03908141,220.31,220.26,6.54815965]
[1759999364003,39.70908141,220.31,220.26,6.54815965]
[1759999364876,34.5,220.31,220.27,6.54815965]
[1759999365101,39.70910394,220.31,220.27,6.54815965]
[1759999365402,0.67,220.3,220.26,6.54815965]
[1759999365597,17.42463486,220.28,220.06,19.99999999]
[1759999365899,41.69815965,220.27,220.2,6.54815965]
[1759999366100,0.67,220.26,220.16,0.66]
[1759999366401,34.48,220.27,220.23,6.54815965]
[1759999366606,34.48,220.27,220.25,6.54815965]
[1759999367604,34.48,220.27,220.26,6.54815965]
[1759999367787,0.67,220.31,220.26,6.54815965]
[1759999367992,35.15,220.3,220.27,6.54815965]
[1759999368200,34.48,220.3,220.28,6.54815965]
[1759999368383,0.67,220.33,220.29,6.54815965]
[1759999368582,0.67,220.32,220.3,6.54815965]
[1759999369082,0.67,220.32,220.25,5.20022054]
[1759999369304,0.67,220.32,220.28,6.54815965]
[1759999369494,0.67,220.32,220.29,6.54815965]
[1759999369809,0.67,220.32,220.3,6.54815965]
[1759999370505,0.67,220.32,220.25,0.66]
[1759999370688,0.67,220.32,220.28,6.54815965]
[1759999370889,0.67,220.31,220.22,21.46]
[1759999371193,0.67,220.31,220.28,6.54815965]
[1759999371596,39.01872401,220.33,220.28,6.54815965]
[1759999371891,35.15,220.33,220.29,6.54815965]
[1759999372205,34.48,220.33,220.25,0.66]
[1759999372388,34.48,220.33,220.31,6.54815965]
[1759999372582,39.01871583,220.33,220.3,6.54815965]
[1759999372786,39.68871583,220.33,220.3,6.54815965]
[1759999373216,0.67,220.32,220.23,11.3517686]
[1759999373403,0.67,220.32,220.22,20.8]
[1759999373404,34.48,220.33,220.24,15.89175444]
[1759999373599,34.48,220.33,220.3,6.54815965]
[1759999373906,35.15,220.33,220.31,6.54815965]
[1759999374114,35.15,220.33,220.25,0.66]
[1759999374311,35.15,220.33,220.3,6.54815965]
[1759999374510,20.8,220.4,220.24,15.89175444]
[1759999374511,10.87647521,220.41,220.31,7.20815965]
[1759999374815,79.4,220.44,220.24,38.59426079]
[1759999374816,35.15,220.44,220.4,6.54815965]
[1759999375013,21.26494592,220.42,220.4,6.54815965]
[1759999375596,0.67,220.42,220.4,6.54815965]
[1759999375810,39.70639284,220.44,220.4,6.54815965]
[1759999376011,0.69,220.43,220.4,6.54815965]
[1759999376310,39.01639284,220.44,220.34,12.00584352]
[1759999376311,0.69,220.42,220.38,6.54815965]
[1759999376518,0.69,220.41,220.39,6.54815965]
[1759999377014,35.17,220.44,220.39,6.54815965]
[1759999377187,0.69,220.43,220.39,11.08548043]
[1759999377393,34.48,220.44,220.41,6.54815965]
[1759999377594,34.48,220.44,220.43,6.54815965]
[1759999377793,34.48,220.44,220.42,6.54815965]
[1759999378003,34.48,220.44,220.39,4.53732078]
[1759999378213,35.17,220.44,220.41,6.55659466]
[1759999378395,34.48,220.44,220.42,4.40162624]
[1759999378595,34.48,220.44,220.43,4.40162624]
[1759999378791,34.68,220.47,220.43,4.40162624]
[1759999378999,0.89,220.47,220.44,4.40162624]
[1759999379313,0.2,220.47,220.42,4.53675803]
[1759999379500,0.89,220.47,220.43,4.40162624]
[1759999380330,4.40162624,220.45,220.34,0.72]
[1759999380507,4.40162624,220.45,220.3,0.72]
[1759999380508,4.40162624,220.43,220.3,0.72]
[1759999380710,10.87647521,220.39,220.27,0.72]
[1759999380910,249.35,220.38,220.31,4.40162624]
[1759999381231,10.87647521,220.32,220.18,0.72]
[1759999381416,10.87647521,220.3,220.22,4.40162624]
[1759999381723,39.55162624,220.31,220.24,4.40162624]
[1759999381724,0.69,220.29,220.24,4.40162624]
[1759999381895,0.69,220.28,220.26,4.40162624]
[1759999382096,0.69,220.27,220.25,4.40162624]
[1759999382322,35.15,220.31,220.25,4.40162624]
[1759999382513,35.15,220.31,220.29,4.40162624]
[1759999382716,34.46,220.31,220.3,4.40162624]
[1759999383026,35.15,220.31,220.21,0.72]
[1759999383230,35.15,220.31,220.25,4.40162624]
[1759999383646,35.15,220.34,220.25,15.89099493]
[1759999383806,35.15,220.34,220.28,4.40162624]
[1759999384004,0.69,220.33,220.26,4.40162624]
[1759999384236,35.15,220.33,220.26,4.40162624]
[1759999384532,34.46,220.33,220.28,4.40162624]
[1759999384826,34.46,220.33,220.25,25.34027239]
[1759999384827,34.46,220.37,220.32,4.40162624]
[1759999385032,35.15,220.37,220.32,4.40162624]
[1759999385206,35.15,220.37,220.32,8.94039248]
[1759999385404,0.69,220.43,220.34,4.40162624]
[1759999385605,35.15,220.43,220.34,4.40162624]
[1759999385797,35.15,220.43,220.36,4.40162624]
[1759999387229,35.15,220.43,220.33,20.8]
[1759999387230,4.40162624,220.41,220.33,20.8]
[1759999387527,4.40162624,220.41,220.34,4.40162624]
[1759999387826,5.22695531,220.42,220.34,4.40162624]
[1759999388032,4.53695531,220.42,220.34,4.40162624]
[1759999388208,38.86162624,220.43,220.34,4.40162624]
[1759999388209,0.69,220.4,220.34,4.40162624]
[1759999388540,4.40162624,220.39,220.22,10.87647521]
[1759999388833,4.53682508,220.42,220.18,36.22444725]
[1759999388834,4.40162624,220.35,220.27,4.40162624]
[1759999389247,5.09162624,220.35,220.28,4.53967677]
[1759999389537,0.69,220.35,220.28,4.53967677]
[1759999389777,4.40162624,220.36,220.29,4.40162624]
[1759999390407,4.40162624,220.36,220.26,0.72]
[1759999390918,4.40162624,220.36,220.28,4.40162624]
[1759999391737,4.40162624,220.36,220.27,4.53981129]